lending/lending_fUSD_20250418
["ID","MTS","AMOUNT","RATE_DAILY","PERIOD"]
[358350963,1744975828101,-500.0,0.00069289,120]
[358350964,1744975828125,-500.0,0.00069289,120]
[358350965,1744975828147,-155.1566903,0.00069289,120]
[358350966,1744975828171,-150.0,0.00069289,120]
[358350967,1744975828193,-500.0,0.00069289,120]
[358350968,1744975828216,-500.0,0.00069289,120]
[358350969,1744975828240,-150.0,0.00069289,120]
[358350970,1744975828263,-150.0,0.00069289,120]
[358350971,1744975828287,-150.0,0.00069289,120]
[358350972,1744975828312,-150.0,0.00069289,120]
[358350973,1744975828335,-150.0,0.00069289,120]
[358350974,1744975828357,-150.75420148,0.00069289,120]
[358350975,1744975828383,-275.91926744,0.00069289,120]
[358350976,1744975828407,-150.0,0.00069289,120]
[358350977,1744975828430,-55808.74851241,0.0006929,120]
[358350978,1744975828458,-1124.33508877,0.00069728,35]
[358350979,1744975828481,-410.84958066,0.00069779,119]
[358350980,1744975828506,-5000.0,0.00069785,120]
[358350981,1744975828529,-18709.90180897,0.000698,120]
[358350982,1744975828554,-151.0,0.00069856,120]
[358350983,1744975828577,-151.0,0.00069856,120]
[358350984,1744975828601,-151.0,0.00069856,120]
[358350985,1744975828625,-151.0,0.00069856,120]
[358350986,1744975828648,-151.0,0.00069856,120]
[358350987,1744975828676,-151.0,0.00069856,120]
[358350988,1744975828702,-297.422328,0.00069856,120]
[358350989,1744975828728,-297.422328,0.00069856,120]
[358350990,1744975828752,-151.0,0.00069856,120]
[358350991,1744975828777,-300.0,0.00069858,60]
[358350992,1744975828801,-151.0,0.00069859,120]
[358350993,1744975828822,-151.0,0.00069859,30]
[358350994,1744975828843,-151.522897,0.00069859,120]
[358350995,1744975828867,-151.0,0.00069859,120]
[358350996,1744975828891,-172.29587,0.00069859,120]
[358350997,1744975828915,-151.0,0.00069859,120]
[358350998,1744975828939,-151.0,0.00069859,120]
[358350999,1744975828962,-209.350256,0.00069859,120]
[358351000,1744975828987,-151.0,0.00069859,120]
[358351001,1744975829012,-151.0,0.00069859,120]
[358351002,1744975829036,-151.0,0.00069859,120]
[358351003,1744975829061,-297.422328,0.00069859,120]
[358351004,1744975829087,-297.422328,0.00069859,120]
[358351005,1744975829116,-300.043138,0.00069859,120]
[358351006,1744975829142,-151.0,0.00069875,120]
[358351007,1744975829166,-151.0,0.00069875,120]
[358351008,1744975829190,-151.0,0.00069875,120]
[358351009,1744975829215,-151.0,0.00069875,120]
[358351010,1744975829239,-151.0,0.00069875,120]
[358351011,1744975829264,-999.0,0.00069878,120]
[358351012,1744975829289,-88888.0,0.00069879,120]
[358351013,1744975829313,-156.73245421,0.00069879,51]
[358351014,1744975829337,-262.88238468,0.00069879,120]
[358351015,1744975829361,-151.0,0.00069879,120]
[358351016,1744975829385,-151.0,0.00069879,120]
[358351017,1744975829410,-151.0,0.00069879,120]
[358351018,1744975829434,-151.0,0.00069879,120]
[358351019,1744975829458,-247.217208,0.00069879,120]
[358351020,1744975829482,-201.631797,0.00069879,120]
[358351021,1744975829507,-297.422328,0.00069879,120]
[358351022,1744975829533,-297.422328,0.00069879,120]
[358351023,1744975829557,-178.85671793,0.0006988,51]
[358351024,1744975829582,-151.0,0.00069885,120]
[358351025,1744975829605,-151.0,0.00069885,120]
[358351026,1744975829629,-151.0,0.00069885,120]
[358351027,1744975829653,-151.0,0.00069885,120]
[358351028,1744975829677,-151.0,0.00069885,60]
[358351029,1744975829706,-154.739915,0.00069885,120]
[358351030,1744975829731,-152.400263,0.00069885,120]
[358351031,1744975829755,-151.0,0.00069885,120]
[358351032,1744975829780,-151.0,0.00069885,120]
[358351033,1744975829806,-151.0,0.00069885,120]
[358351034,1744975829831,-198.266174,0.00069885,120]
[358351035,1744975829856,-428.501196,0.00069885,120]
[358351036,1744975829880,-428.501196,0.00069885,120]
[358351037,1744975829906,-151.0,0.00069885,120]
[358351038,1744975829929,-151.0,0.00069885,120]
[358351039,1744975829953,-151.0,0.00069885,120]
[358351040,1744975829977,-184.860324,0.00069885,120]
[358351041,1744975830003,-151.0,0.00069885,120]
[358351042,1744975830026,-203.969351,0.00069885,120]
[358351043,1744975830051,-154.537136,0.00069885,120]
[358351044,1744975830075,-152.28317,0.00069885,120]
[358351045,1744975830098,-151.0,0.00069885,120]
[358351046,1744975830122,-157.391749,0.00069885,120]
[358351047,1744975830146,-151.0,0.00069885,120]
[358351048,1744975830171,-157.391749,0.00069885,120]
[358351049,1744975830400,-151.0,0.00069885,120]
[358351050,1744975830430,-193.9546127,0.000699,120]
[358351051,1744975830457,-3335.3666166,0.000699,30]
[358351052,1744975830483,-1347.31,0.000699,120]
[358351053,1744975830508,-151.0,0.00069945,120]
[358351054,1744975830534,-151.0,0.00069945,120]
[358351055,1744975830560,-10654.0,0.00069945,120]
[358351056,1744975830587,-9201.0,0.00069973,120]
[358351057,1744975830613,-151.0,0.00069978,120]
[358351058,1744975830638,-151.965418,0.00069978,60]
[358351059,1744975830664,-151.0,0.00069978,120]
[358351060,1744975830689,-151.0,0.00069978,120]
[358351061,1744975830715,-151.0,0.00069978,120]
[358351062,1744975830742,-151.0,0.00069978,120]
[358351063,1744975830768,-151.0,0.00069978,120]
[358351064,1744975830796,-151.0,0.00069989,120]
[358351065,1744975830826,-151.0,0.00069989,120]
[358351066,1744975830853,-152.958871,0.00069989,120]
[358351067,1744975830879,-27883.26892338,0.0006999,120]
[358351068,1744975830906,-246.324413,0.0006999,110]
[358351069,1744975830937,-243.147216,0.0006999,120]
[358351070,1744975830964,-202.183311,0.0006999,120]
[358351071,1744975830990,-151.0,0.0006999,120]
[358351072,1744975831017,-151.0,0.0006999,120]
[358351073,1744975831043,-151.0,0.0006999,120]
[358351074,1744975831069,-151.0,0.0006999,120]
[358351075,1744975831096,-151.0,0.0006999,120]
[358351076,1744975831123,-151.0,0.0006999,120]
[358351077,1744975831152,-500.0,0.0006999,120]
[358351078,1744975831179,-150.0,0.0006999,120]
[358351079,1744975831204,-500.0,0.0006999,120]
[358351080,1744975831231,-151.0,0.0006999,120]
[358351081,1744975831256,-151.0,0.0006999,120]
[358351082,1744975831283,-151.0,0.0006999,120]
[358351083,1744975831310,-159.725837,0.0006999,120]
[358351084,1744975831336,-297.422328,0.0006999,120]
[358351085,1744975831362,-297.422328,0.0006999,120]
[358351086,1744975831389,-151.0,0.0006999,120]
[358351087,1744975831416,-151.0,0.0006999,120]
[358351088,1744975831441,-151.0,0.0006999,120]
[358351089,1744975831466,-151.0,0.0006999,120]
[358351090,1744975831491,-151.0,0.0006999,120]
[358351091,1744975831517,-291223.67735271,0.00069994,30]
[358351092,1744975831543,-151.0,0.00069994,120]
[358351093,1744975831569,-155.97365,0.00069994,120]
[358351094,1744975831593,-151.0,0.00069994,120]
[358351095,1744975831618,-151.0,0.00069994,120]
[358351096,1744975831643,-151.0,0.00069994,120]
[358351097,1744975831668,-151.0,0.00069994,120]
[358351098,1744975831695,-151.0,0.00069994,120]
[358351099,1744975831719,-151.0,0.00069994,120]
[358351100,1744975831744,-153.604255,0.00069994,120]
[358351101,1744975831772,-151.0,0.00069994,120]
[358351103,1744975831800,-151.0,0.00069994,120]
[358351106,1744975831826,-151.0,0.00069994,120]
[358351107,1744975831850,-428.501196,0.00069994,120]
[358351109,1744975831878,-428.501196,0.00069994,120]
[358351114,1744975831925,-153.226819,0.00069994,120]
[358351115,1744975831958,-151.0,0.00069994,120]
[358351116,1744975831993,-154.716897,0.00069994,120]
[358351117,1744975832028,-151.0,0.00069994,120]
[358351118,1744975832064,-295.768273,0.00069994,120]
[358351119,1744975832097,-151.0,0.00069994,120]
[358351120,1744975832129,-151.0,0.00069994,120]
[358351121,1744975832166,-157.391749,0.00069994,120]
[358351122,1744975832200,-151.0,0.00069994,120]
[358351123,1744975832238,-157.391749,0.00069994,120]
[358351124,1744975832281,-151.0,0.00069994,120]
[358351125,1744975832323,-203.202523,0.00069994,120]
[358351127,1744975832362,-151.0,0.00069994,120]
[358351131,1744975832400,-151.0,0.00069994,120]
[358351136,1744975832433,-297.422328,0.00069994,120]
[358351141,1744975832472,-297.422328,0.00069994,120]
[358351146,1744975832505,-151.0,0.00069994,120]
[358351150,1744975832535,-151.0,0.00069994,120]
[358351154,1744975832565,-151.0,0.00069994,120]
[358351159,1744975832600,-151.0,0.00069994,120]
[358351163,1744975832627,-151.739442,0.00069994,120]
[358351166,1744975832656,-151.0,0.00069994,120]
[358351168,1744975832689,-151.0,0.00069994,120]
[358351169,1744975832716,-151.0,0.00069994,120]
[358351170,1744975832746,-151.0,0.00069994,120]
[358351171,1744975832778,-151.0,0.00069994,120]
[358351172,1744975832813,-1000.0,0.00069998,120]
[358351173,1744975832843,-418.8126353,0.00069999,90]
[358351174,1744975832873,-500.0,0.00069999,90]
[358351175,1744975832906,-300.0,0.00069999,60]
[358351176,1744975832938,-300.0,0.00069999,60]
[358351177,1744975832971,-300.0,0.00069999,60]
[358351178,1744975833003,-500.0,0.00069999,90]
[358351179,1744975833035,-500.0,0.00069999,90]
[358351180,1744975833073,-1136.34509679,0.00069999,120]
[358351181,1744975833105,-268.10162168,0.00069999,120]
[358351182,1744975833138,-201.02857644,0.00069999,120]
[358351183,1744975833170,-244999.999999,0.0007,120]
[358351184,1744975833202,-111077.4,0.0007,60]
[358351185,1744975833233,-568.0,0.0007,90]
[358351186,1744975833267,-432945.95090898,0.0007,120]
[358351187,1744975833912,-200.0,0.00041096,20]
[358351188,1744975833922,-200.0,0.00041096,20]
[358351189,1744975833931,-200.0,0.00041096,20]
[358351190,1744975833941,-250.0,0.00051888,2]
[358351191,1744975833951,-250.0,0.00057285,2]
[358351192,1744975833961,-157.23,0.00061697,2]
[358351193,1744975833971,-150.0,0.00064465,2]
[358351194,1744975833981,-360.64341735,0.00064773,2]
[358351195,1744975833991,-23900.0,0.00065221,2]
[358351196,1744975834001,-203.77,0.00065241,2]
[358351197,1744975834012,-5000.01,0.00066958,2]
[358351198,1744975834022,-150.51,0.0006699,120]
[358351199,1744975834031,-150.51,0.00067202,120]
[358351200,1744975834041,-14574.18678303,0.00067212,2]
[358351201,1744975834051,-150.77,0.00067513,2]
[358351202,1744975834061,-204.29,0.00067521,2]
[358351203,1744975834071,-500.0,0.00068,10]
[358351204,1744975834081,-500.0,0.00068,11]
[358351205,1744975834090,-500.0,0.00068,12]
[358351206,1744975834100,-2137.0,0.00068183,2]
[358351207,1744975834110,-152.0,0.00068183,2]
[358351208,1744975834119,-152.0,0.00068183,120]
[358351209,1744975834129,-500.0,0.0006838,15]
[358351210,1744975834138,-411.13558884,0.00068493,2]
[358351211,1744975834154,-89.94302164,0.00068493,2]
[358351212,1744975834164,-4311.65000167,0.00068845,2]
[358351213,1744975834173,-169.19,0.00068853,2]
[358351214,1744975834183,-200.0,0.00068853,2]
[358351215,1744975834192,-150.51,0.00069206,120]
[358351216,1744975834202,-150.51,0.0006928,120]
[358351217,1744975834212,-150.0,0.00069289,2]
[358351218,1744975834221,-807.45,0.00069317,2]
[358351219,1744975834231,-11068.09475148,0.00069324,2]
[358351220,1744975834241,-933.18222511,0.00069576,15]
[358351221,1744975834253,-803.35365629,0.00069576,15]
[358351222,1744975834264,-891.29250175,0.00069576,15]
[358351223,1744975834276,-308.84060142,0.00069576,15]
[358351224,1744975834287,-320.68,0.00069576,15]
[358351227,1744975838081,-162.29,0.00054447,2]
[358351228,1744975838091,-2049.0,0.00068183,120]
[358351229,1744975838101,-3969.0,0.00068183,120]
[358351230,1744975838111,-1000.0,0.00069579,2]
[358351231,1744975838121,-5685.4090613,0.00069617,15]
[358351232,1744975838130,-151.0,0.00069636,2]
[358351233,1744975838140,-162.0,0.00069636,2]
[358351234,1744975838149,-5685.4090613,0.00069657,15]
[358351235,1744975838159,-150.51,0.00069669,120]
[358351236,1744975838168,-1000.0,0.00069679,2]
[358351237,1744975838177,-1000.0,0.00069679,2]
[358351238,1744975838188,-1000.0,0.00069679,2]
[358351239,1744975838197,-1000.0,0.00069679,2]
[358351240,1744975838206,-1000.0,0.00069679,2]
[358351241,1744975838215,-1000.0,0.00069679,2]
[358351242,1744975838224,-1000.0,0.00069679,2]
[358351243,1744975838233,-1000.0,0.00069679,2]
[358351244,1744975838243,-1000.0,0.00069679,2]
[358351245,1744975838253,-1000.0,0.00069679,2]
[358351246,1744975838262,-1000.0,0.00069679,2]
[358351247,1744975838272,-1000.0,0.00069679,2]
[358351248,1744975838281,-1000.0,0.00069679,2]
[358351249,1744975838294,-1000.0,0.00069679,2]
[358351250,1744975838303,-1000.0,0.00069679,2]
[358351251,1744975838312,-1000.0,0.00069679,2]
[358351252,1744975838321,-1000.0,0.00069679,2]
[358351253,1744975838330,-1000.0,0.00069679,2]
[358351254,1744975838339,-1000.0,0.00069679,2]
[358351255,1744975838349,-1000.0,0.00069679,2]
[358351256,1744975838357,-1000.0,0.00069679,2]
[358351257,1744975838368,-1000.0,0.00069679,2]
[358351258,1744975838378,-1000.0,0.00069679,2]
[358351259,1744975838387,-1000.0,0.00069679,2]
[358351260,1744975838397,-1000.0,0.00069679,2]
[358351261,1744975838406,-1000.0,0.00069679,2]
[358351263,1744975838416,-1000.0,0.00069679,2]
[358351265,1744975838425,-1000.0,0.00069679,2]
[358351266,1744975838435,-1000.0,0.00069679,2]
[358351267,1744975838444,-827.72987865,0.00069679,2]
[358351268,1744975838453,-5685.4090613,0.00069698,15]
[358351269,1744975838462,-5685.4090613,0.00069738,15]
[358351270,1744975838471,-10683.0347,0.00069756,2]
[358351271,1744975838480,-10996.23860829,0.00069758,15]
[358351272,1744975838490,-150.51,0.00069764,120]
[358351273,1744975838499,-10996.23860823,0.00069774,15]
[358351274,1744975838508,-5685.4090613,0.00069779,15]
[358351275,1744975838518,-10996.23860823,0.0006979,15]
[358351276,1744975838527,-150.51,0.0006979,120]
[358351277,1744975838537,-26075.5045,0.0006979,2]
[358351278,1744975838551,-10996.23860823,0.00069805,15]
[358351279,1744975838561,-154.504372,0.00069815,2]
[358351281,1744975838571,-5685.4090613,0.00069819,15]
[358351282,1744975838580,-10996.23860823,0.00069821,15]
[358351284,1744975838590,-10996.23860823,0.00069837,15]
[358351286,1744975838600,-150.51,0.00069843,120]
[358351288,1744975838609,-150.51,0.00069846,120]
[358351290,1744975838619,-10996.23860823,0.00069853,15]
[358351291,1744975838628,-74656.82444632,0.00069857,2]
[358351293,1744975838639,-550.49,0.00069858,2]
[358351295,1744975838649,-150.51,0.00069859,120]
[358351296,1744975838658,-3789.28941834,0.0006986,15]
[358351297,1744975838695,-1258.39999982,0.0006986,15]
[358351298,1744975838707,-419.25297717,0.0006986,15]
[358351299,1744975838718,-218.46666597,0.0006986,15]
[358351300,1744975838728,-10996.23860823,0.00069868,15]
[358351301,1744975838737,-27466.85040159,0.00069869,5]
[358351302,1744975838749,-4222.45,0.00069869,5]
[358351304,1744975840289,-0.07513212,0.00069869,5]
[358351305,1744975840335,-4057.11426279,0.00069869,5]
[358351306,1744975840347,-193.53089108,0.00069869,7]
[358351307,1744975840357,-150.51,0.00069869,120]
[358351308,1744975840367,-150.51,0.00069869,120]
[358351309,1744975840378,-5057.93484605,0.00069875,5]
[358351310,1744975840392,-672.92702478,0.00069875,5]
[358351311,1744975840404,-226.88642859,0.00069875,5]
[358351312,1744975840414,-151.0,0.00069879,120]
[358351313,1744975840424,-4177.66357141,0.00069884,15]
[358351314,1744975840441,-411.31082313,0.00069884,15]
[358351315,1744975840453,-699.6409542,0.00069884,15]
[358351316,1744975840465,-564.61173046,0.00069884,15]
[358351317,1744975840575,-615.6505,0.00069884,15]
[358351318,1744975840587,-4527.36102903,0.00069884,15]
[358351319,1744975840598,-186.925723,0.00069885,2]
[358351320,1744975840608,-186.925723,0.00069885,2]
[358351321,1744975840618,-1771.98752499,0.0006989,5]
[358351322,1744975840630,-565.32665385,0.0006989,5]
[358351323,1744975840642,-336.0581857,0.0006989,5]
[358351324,1744975840654,-3284.37593488,0.0006989,5]
[358351325,1744975840665,-5685.4090613,0.000699,15]
[358351326,1744975840675,-10996.23860823,0.000699,15]
[358351327,1744975840684,-165.65433984,0.000699,2]
[358351328,1744975840695,-193.37308347,0.000699,15]
[358351329,1744975840704,-6589.96890337,0.000699,2]
[358351330,1744975840715,-912.52836013,0.000699,2]
[358351331,1744975840724,-150.51,0.00069925,120]
[358351332,1744975840734,-5957.74829942,0.00069935,5]
[358351333,1744975840743,-5957.74829942,0.00069963,5]
[358351334,1744975840753,-2000.0,0.00069966,4]
[358351335,1744975840764,-11915.4965988,0.00069968,5]
[358351336,1744975840774,-150.51,0.0006997,120]
[358351337,1744975840784,-150.51,0.00069974,120]
[358351339,1744975840794,-150.51,0.00069974,120]
[358351341,1744975840803,-17873.2448983,0.0006998,5]
[358351342,1744975840813,-150.51,0.0006998,120]
[358351344,1744975840823,-5957.74829942,0.0006998,5]
[358351345,1744975840832,-142985.959186,0.00069984,5]
[358351346,1744975840842,-150.51,0.00069984,120]
[358351347,1744975840856,-150.51,0.00069984,120]
[358351348,1744975840866,-150.51,0.00069984,120]
[358351349,1744975840875,-150.51,0.00069984,120]
[358351350,1744975840885,-150.51,0.00069984,120]
[358351351,1744975840895,-151.0,0.00069984,120]
[358351352,1744975840905,-186.925723,0.00069989,2]
[358351353,1744975840915,-186.925723,0.00069989,2]
[358351354,1744975840924,-1508.00047597,0.00069989,2]
[358351355,1744975840936,-469.96554019,0.00069989,2]
[358351364,1744975843082,-402.0340627,0.00069517,30]
[358351365,1744975843094,-370.329914,0.00069517,30]
[358351367,1744975844055,-227.6360233,0.00069517,30]
[358351368,1744975844064,-22.03398384,0.00069989,2]
[358351369,1744975844073,-2000.0,0.00069989,2]
[358351370,1744975844082,-150.51,0.0006999,120]
[358351371,1744975844091,-150.51,0.0006999,120]
[358351372,1744975844101,-150.51,0.0006999,120]
[358351373,1744975844110,-150.51,0.0006999,120]
[358351374,1744975844119,-150.51,0.0006999,120]
[358351375,1744975844128,-150.51,0.0006999,120]
[358351376,1744975844137,-150.51,0.0006999,120]
[358351377,1744975844147,-150.51,0.0006999,120]
[358351378,1744975844156,-150.51,0.0006999,120]
[358351379,1744975844165,-150.51,0.0006999,120]
[358351380,1744975844174,-150.51,0.0006999,120]
[358351381,1744975844183,-150.51,0.0006999,120]
[358351382,1744975844193,-150.51,0.0006999,120]
[358351383,1744975844203,-150.51,0.0006999,120]
[358351384,1744975844212,-150.51,0.0006999,120]
[358351385,1744975844220,-2703.44783172,0.0006999,8]
[358351386,1744975844229,-150.51,0.0006999,120]
[358351387,1744975844238,-150.51,0.0006999,120]
[358351388,1744975844248,-150.51,0.0006999,120]
[358351389,1744975844258,-150.51,0.0006999,120]
[358351390,1744975844267,-150.51,0.0006999,120]
[358351391,1744975844276,-150.51,0.0006999,120]
[358351392,1744975844286,-150.51,0.0006999,120]
[358351393,1744975844297,-150.51,0.0006999,120]
[358351394,1744975844307,-150.51,0.0006999,120]
[358351395,1744975844317,-150.51,0.0006999,120]
[358351396,1744975844327,-150.51,0.0006999,120]
[358351397,1744975844337,-150.51,0.0006999,120]
[358351398,1744975844347,-150.51,0.0006999,120]
[358351399,1744975844356,-150.51,0.0006999,120]
[358351400,1744975844366,-150.51,0.0006999,120]
[358351401,1744975844375,-150.51,0.0006999,120]
[358351402,1744975844385,-150.51,0.0006999,120]
[358351403,1744975844395,-150.51,0.0006999,120]
[358351404,1744975844405,-150.51,0.0006999,120]
[358351405,1744975844414,-150.51,0.0006999,120]
[358351406,1744975844423,-150.51,0.0006999,120]
[358351407,1744975844433,-150.51,0.0006999,120]
[358351408,1744975844443,-150.51,0.0006999,120]
[358351409,1744975844453,-150.51,0.0006999,120]
[358351410,1744975844462,-150.51,0.0006999,120]
[358351411,1744975844472,-150.51,0.0006999,120]
[358351412,1744975844482,-150.51,0.0006999,120]
[358351413,1744975844493,-150.51,0.0006999,120]
[358351414,1744975844502,-150.51,0.0006999,120]
[358351415,1744975844512,-150.51,0.0006999,120]
[358351416,1744975844521,-150.51,0.0006999,120]
[358351417,1744975844531,-150.51,0.0006999,120]
[358351418,1744975844540,-150.51,0.0006999,120]
[358351419,1744975844550,-150.51,0.0006999,120]
[358351420,1744975844559,-150.51,0.0006999,120]
[358351421,1744975844568,-150.51,0.0006999,120]
[358351422,1744975844578,-150.51,0.0006999,120]
[358351423,1744975844588,-150.51,0.0006999,120]
[358351424,1744975844597,-150.51,0.0006999,120]
[358351425,1744975844607,-150.51,0.0006999,120]
[358351426,1744975844617,-150.51,0.0006999,120]
[358351427,1744975844627,-150.51,0.0006999,120]
[358351428,1744975844636,-150.51,0.0006999,120]
[358351429,1744975844646,-150.51,0.0006999,120]
[358351430,1744975844655,-150.51,0.0006999,120]
[358351431,1744975844665,-150.51,0.0006999,120]
[358351432,1744975844675,-150.51,0.0006999,120]
[358351433,1744975844685,-150.51,0.0006999,120]
[358351434,1744975844696,-150.51,0.0006999,120]
[358351435,1744975844706,-150.51,0.0006999,120]
[358351436,1744975844717,-150.51,0.0006999,120]
[358351437,1744975844727,-150.51,0.0006999,120]
[358351438,1744975844737,-150.51,0.0006999,120]
[358351439,1744975844747,-150.51,0.0006999,120]
[358351440,1744975844757,-150.51,0.0006999,120]
[358351441,1744975844767,-150.51,0.0006999,120]
[358351442,1744975844777,-150.51,0.0006999,120]
[358351443,1744975844787,-150.51,0.0006999,120]
[358351444,1744975844798,-150.51,0.0006999,120]
[358351445,1744975844809,-186.925723,0.00069994,2]
[358351446,1744975844818,-186.925723,0.00069994,2]
[358351447,1744975844827,-151.0,0.00069994,120]
[358351448,1744975844837,-862120.83212305,0.0007,3]
[358351449,1744975844847,-567054.04909102,0.0007,120]
[358351450,1744975844856,-129592.86251034,0.0007,120]
[358351451,1744975844986,-10609.61618439,0.0007,120]
[358351452,1744975844999,-1598.89385898,0.0007,120]
[358351453,1744975845017,-2818.3319695,0.0007,120]
[358351459,1744975989620,5371.392245,7.945e-05,2]
[358351460,1744976808138,-150.0,0.00034548,10]
[358351461,1744976808160,-169.737325,0.00037903,2]
[358351462,1744976808180,-39.75549781,0.00038003,2]
[358351463,1744976839092,-210.24450219,0.00038003,2]
[358351464,1744976839115,-1055.0,0.0004,120]
[358351465,1744976839138,-250.0,0.00041207,2]
[358351466,1744976839162,-219.24553104,0.00045984,2]
[358351467,1744976840086,-242.05659739,0.00045984,2]
[358351468,1744976840108,-250.0,0.00046084,2]
[358351469,1744976840128,-453.36881405,0.00047867,2]
[358351470,1744976841137,-4065.38622955,0.00047867,2]
[358351471,1744976841159,-243.11719965,0.00047867,6]
[358351472,1744976841180,-189.09914953,0.000479,2]
[358351473,1744976841204,-749.55672604,0.000479,20]
[358351474,1744976841224,-749.55672584,0.00049176,21]
[358351475,1744976841245,-485.0,0.0005,120]
[358351476,1744976841266,-749.55672584,0.00050452,22]
[358351477,1744976841286,-604.995796,0.00051468,5]
[358351478,1744976841307,-749.55672584,0.00051728,23]
[358351479,1744976841327,-947.93627734,0.00052647,2]
[358351480,1744976841350,-600.0,0.00052698,15]
[358351481,1744976841370,-242.60977915,0.00052699,10]
[358351482,1744976847146,-461.30212843,0.000478,2]
[358351483,1744976847169,-316.98848051,0.00052699,10]
[358351485,1744977032240,-150.0,0.00031,2]
[358351486,1744977032253,-250.0,0.000341,2]
[358351487,1744977032264,-147.25853702,0.00047245,2]
[358351488,1744977032293,-27.99146298,0.00047245,2]
[358351489,1744977032305,-250.0,0.00049972,2]
[358351490,1744977032317,-250.0,0.00051969,2]
[358351491,1744977032328,-150.0,0.00053973,2]
[358351492,1744977032339,-340.0,0.00054999,10]
[358351494,1744977032351,-29577.30463474,0.00055,120]
[358351496,1744977032362,-987.0,0.00056194,9]
[358351498,1744977032373,-16371.2496915,0.00056195,2]
[358351501,1744977032388,-7528.7503085,0.00056195,2]
[358351503,1744977032399,-208.20705547,0.00056699,120]
[358351505,1744977032410,-500.0,0.00056699,120]
[358351507,1744977032422,-500.0,0.00056699,120]
[358351510,1744977032433,-236.23932818,0.00056699,120]
[358351512,1744977032445,-500.0,0.00056699,120]
[358351513,1744977032457,-500.0,0.00056699,120]
[358351516,1744977032467,-500.0,0.00056699,120]
[358351518,1744977032478,-500.0,0.00056699,120]
[358351520,1744977032490,-500.0,0.00056699,120]
[358351522,1744977032503,-500.0,0.00056699,120]
[358351525,1744977032515,-500.0,0.00056699,120]
[358351527,1744977032526,-500.0,0.00056699,120]
[358351529,1744977032537,-500.0,0.00056699,120]
[358351531,1744977032548,-500.0,0.00056699,120]
[358351533,1744977032559,-350.0,0.00056699,120]
[358351536,1744977032570,-500.0,0.00056699,120]
[358351538,1744977032579,-8652.53459769,0.00056699,2]
[358351541,1744977032591,-414.93679057,0.00056699,2]
[358351557,1744977038204,-2905.2190394,0.00056699,2]
[358351558,1744977038216,-39241.36003467,0.000567,2]
[358351559,1744977038226,-649.6158291,0.000569,26]
[358351560,1744977038237,-189.09914952,0.00057214,2]
[358351561,1744977038248,-150.0,0.00057496,2]
[358351562,1744977038259,-250.0,0.00057571,120]
[358351563,1744977038270,-2510.49,0.00057676,2]
[358351564,1744977038281,-2114.14,0.00057676,2]
[358351565,1744977038291,-649.61582906,0.00057866,27]
[358351566,1744977038303,-157.23,0.00057934,2]
[358351567,1744977038314,-500.0,0.0005802,2]
[358351568,1744977038325,-30091.66,0.00058317,2]
[358351569,1744977038336,-309.0,0.0005852,30]
[358351570,1744977038346,-296.44,0.00058568,2]
[358351571,1744977038358,-200.0,0.00058576,30]
[358351572,1744977038369,-649.61582906,0.00058831,27]
[358351573,1744977038379,-39866.78,0.00059018,30]
[358351574,1744977038390,-175.25,0.00059056,2]